Cogmind - Beta 10.2 @@@ ROGUE MODE // 2021.03.15 @ 20:58:27 Player: Robbedoes Result: Self-destructed Performance ------------- Evolutions (2) 1000 Regions Visited (5) 1000 Robots Destroyed (35) 175 Value Destroyed (849) 849 Prototype IDs (0) 0 Alien Tech Used (0) 0 Bonus (-3) -3 TOTAL SCORE: 3021 Bonus ------- High Alert Combat Kills 13 Follower Combat Kills 71 Friendly Fire -87 Cogmind --------- Core Integrity 337/550 Matter 300/300 Energy 380/380 System Corruption 0% Temperature Cool (78) Movement Treading (160) Location -8/Materials Parts ------- > --- POWER (2) -------- Nuclear Core Nuclear Core > --- PROPULSION (3) --- Light Treads Light Treads > --- UTILITY (4) ------ Large Storage Unit Enhanced Optical Array Signal Interpreter > --- WEAPON (2) ------- (None) > --- INVENTORY (10) --- Advanced Treads Large Storage Unit Large Storage Unit Heavy EM Pulse Gun Heavy Missile Launcher Heavy Missile Launcher Peak State ------------ > --- POWER ------------ Light Deuterium Engine Nuclear Core > --- PROPULSION ------- Light Treads Light Treads Advanced Treads > --- UTILITY ---------- Large Storage Unit Enhanced Optical Array Signal Interpreter Recalibrator > --- WEAPON ----------- Heavy EM Pulse Gun Shock Rifle > --- INVENTORY -------- Nuclear Core Light Treads Light Treads Advanced Treads Large Storage Unit Large Storage Unit Heavy EM Pulse Gun Heavy EM Pulse Gun Heavy Missile Launcher Heavy Missile Launcher [Rating: 28] Favorites ----------- Power Ion Engine Engine Ion Engine Power Core Nuclear Core Propulsion Light Treads Treads Light Treads Leg Aluminum Leg Utility Signal Interpreter Device Recalibrator Storage Small Storage Unit Processor Signal Interpreter Weapon Assault Rifle Energy Gun EM Pulse Gun Ballistic Gun Assault Rifle Launcher Rocket Launcher Build | -11 -10 -10 -10 -9 -8 ------- Run | Scr Mat Min Exi Min Mat Slots Evolved 4 | . . . . . 4 Power 1 | . . . . . 1 Propulsion 1 | . . . . . 1 Utility 2 | . . . . . 2 Weapon . | . . . . . . Parts Attached 35 | . 3 . . 7 25 Power 4 | . . . . 1 3 Engine 2 | . . . . 1 1 Core 2 | . . . . . 2 Reactor . | . . . . . . Propulsion 12 | . 2 . . 2 8 Treads 12 | . 2 . . 2 8 Leg . | . . . . . . Wheel . | . . . . . . Hover . | . . . . . . Flight . | . . . . . . Utility 5 | . 1 . . . 4 Device 2 | . . . . . 2 Storage 1 | . . . . . 1 Processor 2 | . 1 . . . 1 Hackware . | . . . . . . Protection . | . . . . . . Artifact . | . . . . . . Weapon 14 | . . . . 4 10 Energy Gun 7 | . . . . 2 5 Energy Cannon . | . . . . . . Ballistic Gun 3 | . . . . 1 2 Ballistic Cannon . | . . . . . . Launcher 4 | . . . . 1 3 Special Weapon . | . . . . . . Impact Weapon . | . . . . . . Slashing Weapon . | . . . . . . Piercing Weapon . | . . . . . . Special Melee Weapon . | . . . . . . Unidentified Prototypes . | . . . . . . Parts Lost 9 | . . . . . 9 Power 2 | . . . . . 2 Propulsion 3 | . . . . . 3 Utility 1 | . . . . . 1 Weapon 3 | . . . . . 3 Highest Loss Streak 5 | . . . . . 5 Average Slot Usage (%) 98 | . 94 100 100 100 94 Engine 13 | . 14 14 14 14 9 Core 1 | . . . . . 4 Treads 27 | . 14 28 28 28 26 Device 3 | . . . . . 14 Storage 12 | . 14 14 14 14 9 Processor 13 | . 8 14 14 14 11 Energy Gun 12 | . 14 14 14 10 11 Ballistic Gun 12 | . 14 14 14 14 5 Launcher 1 | . . . . 3 . Naked Turns . | . . . . . . Heaviest Build 40 | 13 13 13 13 15 40 Greatest Support 62 | 20 40 40 40 40 62 Greatest Overweight (x) 1 | . . . . . 1 Average Overweight (x) . | . . . . . . Largest Inventory Capacity 10 | . 6 6 6 6 10 Average Capacity 6 | . 6 6 6 6 7 Most Carried 10 | . 6 6 6 6 10 Average Carried 6 | . 5 6 6 5 7 Final Capacity 10 | 6 6 6 6 6 10 Final Carried 6 | 6 6 6 6 6 6 Class Distribution -------------------- 70% | Mutant 29% | Scavenger-Mutant Dominant Class ---------------- Mutant | -10/Materials Mutant | -10/Mines Mutant | -10/Exiles Mutant | -9/Mines Scavenger-Mutant | -8/Materials Resources | -11 -10 -10 -10 -9 -8 ----------- Run | Scr Mat Min Exi Min Mat Matter Collected 818 | 200 69 . . 132 417 Remotely . | . . . . . . Salvage Created 1206 | . 100 . . 207 899 Parts 71 | . 7 . . 8 56 Haulers Intercepted 4 | . . . . . 4 Recyclers Shooed 6 | . 3 . . . 3 Parts Field Recycled . | . . . . . . Retrieved Matter . | . . . . . . Parts Self-Destructed . | . . . . . . Prevented . | . . . . . . Kills | -11 -10 -10 -10 -9 -8 ------- Run | Scr Mat Min Exi Min Mat Combat Hostiles Destroyed 24 | . . . . 5 19 Guns 19 | . . . . 4 15 AOE 5 | . . . . 1 4 Classes Destroyed 12 | . 2 . . 5 5 Worker 2 | . . . . . 2 Tunneler 1 | . . . . 1 . Hauler 4 | . . . . . 4 Recycler 2 | . 1 . . . 1 Operator 1 | . . . . . 1 Watcher 2 | . 2 . . . . Swarmer 10 | . . . . . 10 Grunt 9 | . . . . 2 7 Brawler 1 | . . . . 1 . Sentry 2 | . . . . . 2 Demolisher 1 | . . . . 1 . Assembled 1 | . . . . 1 . Best Kill Streak 9 | . 2 . . 2 9 Combat Bots Only 6 | . . . . 2 6 Max Kills in Single Turn 2 | . 1 . . 1 2 Gunslinging 1 | . . . . . 1 Exploded 2 | . . . . 1 2 Melee . | . . . . . . Uniques/NPCs Destroyed . | . . . . . . Combat | -11 -10 -10 -10 -9 -8 -------- Run | Scr Mat Min Exi Min Mat Damage Taken 1932 | . 36 22 . 293 1581 Core 220 | . . 7 . . 213 Absorbed by Shields . | . . . . . . Core Remaining (%) 98 | 100 . . . 97 . Volleys Fired 112 | . 13 . . 17 82 Largest 2 | . 2 . . 2 2 Hottest 95 | . 60 . . 68 95 Shots Fired 216 | . 26 . . 29 161 Gun 211 | . 26 . . 28 157 Cannon . | . . . . . . Launcher 5 | . . . . 1 4 Special . | . . . . . . Kinetic 72 | . 13 . . 17 42 Thermal . | . . . . . . Explosive 5 | . . . . 1 4 Electromagnetic 139 | . 13 . . 11 115 Robot Hit Streak 17 | . 7 . . 5 17 Robot Miss Streak 8 | . 4 . . 3 8 Penetration Max . | . . . . . . Secondary Targets 1 | . . . . . 1 Max Gunslinging Chain 1 | . . . . . 1 Shots Hit Robots 145 | . 18 . . 16 111 Core Hits 59 | . 5 . . 11 43 Critical Hits . | . . . . . . Critical Kills . | . . . . . . Critical Parts Destroyed . | . . . . . . Melee Attacks . | . . . . . . Impact . | . . . . . . Slashing . | . . . . . . Piercing . | . . . . . . Sneak Attacks . | . . . . . . Combat Hostiles . | . . . . . . Follow-up Attacks . | . . . . . . Damage Inflicted 2660 | . 263 . . 280 2117 Guns 1727 | . 229 . . 184 1314 Cannons . | . . . . . . Explosions 933 | . 34 . . 96 803 Melee . | . . . . . . Ramming . | . . . . . . Kinetic 476 | . 92 . . 110 274 Thermal 406 | . 34 . . . 372 Explosive 527 | . . . . 96 431 Electromagnetic 1251 | . 137 . . 74 1040 Impact . | . . . . . . Slashing . | . . . . . . Piercing . | . . . . . . Highest Corruption . | . . . . . . Average Corruption . | . . . . . . Corruption Purged . | . . . . . . Overload Shots . | . . . . . . Overflow Damage 32 | . . . . . 32 Projectiles . | . . . . . . Explosions 32 | . . . . . 32 Melee . | . . . . . . Knockbacks . | . . . . . . Impact . | . . . . . . Kinetic . | . . . . . . Secondary . | . . . . . . Self-Inflicted Damage 207 | . 37 . . 45 125 Shots 8 | . 1 . . 1 6 Rammed . | . . . . . . Targets Rammed . | . . . . . . Kicked . | . . . . . . Crushed . | . . . . . . Highest Temperature 348 | . 12 . . 24 348 Average Temperature 116 | . 12 . . 8 125 Received Heat Transfer 612 | . . . . 54 558 Effects 9 | . . . . . 9 Shutdowns 1 | . . . . . 1 Energy Bleed 2 | . . . . . 2 Interference 6 | . . . . . 6 Siege Activations . | . . . . . . Robots Corrupted . | . . . . . . Combat Hostiles . | . . . . . . Parts Fried 6 | . . . . . 6 Impact Corruptions . | . . . . . . Robots Melted . | . . . . . . Combat Hostiles . | . . . . . . Parts Melted 2 | . 1 . . 1 . Heat Transferred 500 | . 50 . . . 450 Parts Sabotaged . | . . . . . . Parts Stolen . | . . . . . . Parts Stripped . | . . . . . . Power Chain Reactions 6 | . 1 . . . 5 Missiles Intercepted . | . . . . . . Alert | -11 -10 -10 -10 -9 -8 ------- Run | Scr Mat Min Exi Min Mat Peak Influence 460 | . 64 83 . 124 460 Initial 24 | . . 24 . . 5 Average 53 | . 38 11 . 26 135 Maximum Alert Level 2 | . . . . . 2 Low Security (%) 94 | . 100 100 . 100 79 Level 1 4 | . . . . . 15 Level 2 1 | . . . . . 4 Level 3 . | . . . . . . Level 4 . | . . . . . . Level 5 . | . . . . . . High Security . | . . . . . . Max Security . | . . . . . . Squads Dispatched 6 | . . . . 1 5 Investigation 3 | . . . . 1 2 Extermination . | . . . . . . Reinforcement 3 | . . . . . 3 Assault . | . . . . . . Garrison . | . . . . . . Intercept . | . . . . . . Construction Impeded 1 | . . . . . 1 Haulers Reinforced . | . . . . . . Stealth | -11 -10 -10 -10 -9 -8 --------- Run | Scr Mat Min Exi Min Mat Distress Signals 4 | . . . . . 4 Communications Jammed . | . . . . . . Distress Signals . | . . . . . . Times Spotted 63 | . 2 3 . 11 47 Peak Tracking Total 10 | . 1 2 . 3 10 Tactical Retreats 5 | . . . . . 5 Traps | -11 -10 -10 -10 -9 -8 ------- Run | Scr Mat Min Exi Min Mat Traps Triggered 1 | . . . . . 1 Indirectly . | . . . . . . Trap Hack Attempts . | . . . . . . Triggered . | . . . . . . Disarmed . | . . . . . . Reprogrammed . | . . . . . . Reused . | . . . . . . Traps Extracted . | . . . . . . Installed 1 | . . 1 . . . Triggered . | . . . . . . Machines | -11 -10 -10 -10 -9 -8 ---------- Run | Scr Mat Min Exi Min Mat Machines Disabled 8 | . 1 . . 3 4 Max in Single Turn 1 | . 1 . . 1 1 Machines Sabotaged . | . . . . . . Garrisons Compromised . | . . . . . . Overloaded Fab Kills . | . . . . . . Fab Network Shutdowns . | . . . . . . Hacking | -11 -10 -10 -10 -9 -8 --------- Run | Scr Mat Min Exi Min Mat Machines Accessed 6 | . 2 . . 3 1 Terminals 2 | . . . . 1 1 Fabricators . | . . . . . . Repair Stations . | . . . . . . Recycling Units 2 | . 2 . . . . Scanalyzers . | . . . . . . Garrison Access . | . . . . . . Total Hacks 12 | . 7 . . 3 2 Successful 6 | . 3 . . 3 . Failed 6 | . 4 . . . 2 Catastrophic . | . . . . . . Database Lockouts . | . . . . . . Manual . | . . . . . . Terminals 3 | . . . . 1 2 Fabricators . | . . . . . . Repair Stations . | . . . . . . Recycling Units 7 | . 7 . . . . Scanalyzers . | . . . . . . Garrison Access . | . . . . . . Terminal Hacks 3 | . . . . 3 . Open Door 2 | . . . . 2 . Dispatch Records 1 | . . . . 1 . Fabricator Hacks . | . . . . . . Repair Station Hacks . | . . . . . . Recycling Unit Hacks 3 | . 3 . . . . Retrieve Components 3 | . 3 . . . . Scanalyzer . | . . . . . . Garrison Access Hacks . | . . . . . . Unauthorized Hacks . | . . . . . . Terminals . | . . . . . . Fabricators . | . . . . . . Repair Stations . | . . . . . . Recycling Units . | . . . . . . Scanalyzers . | . . . . . . Garrison Access . | . . . . . . Data Cores Recovered . | . . . . . . Used . | . . . . . . Hacking Detections 3 | . 2 . . . 1 Full Trace Events 1 | . . . . . 1 Feedback Events . | . . . . . . Feedback Blocked . | . . . . . . Robot Schematics Acquired . | . . . . . . Robots Built . | . . . . . . Matter . | . . . . . . Time . | . . . . . . Total Robot Build Rating . | . . . . . . Part Schematics Acquired . | . . . . . . Parts Built . | . . . . . . Matter . | . . . . . . Time . | . . . . . . Total Part Build Rating . | . . . . . . Parts Repaired . | . . . . . . Time . | . . . . . . Parts Recycled . | . . . . . . Recycled Matter . | . . . . . . Retrieved Matter . | . . . . . . Retrieved Components 8 | . 8 . . . . Parts Scanalyzed . | . . . . . . Part Schematics Acquired . | . . . . . . Parts Damaged . | . . . . . . Bothacking | -11 -10 -10 -10 -9 -8 ------------ Run | Scr Mat Min Exi Min Mat Used RIF Installer . | . . . . . . Robots Hacked . | . . . . . . Non-combat . | . . . . . . Combat . | . . . . . . Robot Hacks Applied . | . . . . . . Relay Couplers Released . | . . . . . . Robots Rewired . | . . . . . . Allies Hacked . | . . . . . . Hacks Repelled . | . . . . . . Allies | -11 -10 -10 -10 -9 -8 -------- Run | Scr Mat Min Exi Min Mat Total Allies 4 | . . 3 . 1 . Largest Group 3 | . . 3 2 2 . Highest-Rated Group 40 | . . 40 32 32 . Highest-Rated Ally 31 | . . 16 16 31 . Total Orders . | . . . . . . Ally Attacks 29 | . . 12 . 17 . Total Damage 315 | . . 108 . 207 . Kills 5 | . . 3 . 2 . Allies Corrupted . | . . . . . . Allies Melted . | . . . . . . Intel | -11 -10 -10 -10 -9 -8 ------- Run | Scr Mat Min Exi Min Mat Robot Analysis Total . | . . . . . . Derelict Logs Recovered 4 | . . 2 . 2 . Drone Launches . | . . . . . . Drone Recoveries . | . . . . . . Exploration | -11 -10 -10 -10 -9 -8 ------------- Run | Scr Mat Min Exi Min Mat Turns Passed 4431 | . 154 1053 808 1402 1014 Spaces Moved 2464 | 1 73 636 506 815 433 Core . | . . . . . . Treads 2419 | . 29 636 506 815 433 Legs 45 | 1 44 . . . . Wheels . | . . . . . . Hover . | . . . . . . Flight . | . . . . . . Fastest Speed 120 | 120 120 160 160 160 155 Average Speed 158 | 120 135 160 160 160 157 Slowest Speed 180 | 120 160 160 160 160 180 Overloaded Moves . | . . . . . . Propulsion Burnouts . | . . . . . . Robots Hopped . | . . . . . . Cave-ins Triggered . | . . . . . . Exploration Rate (%) 57 | 2 18 96 89 99 39 Regions Visited 5 Branch Regions 3 Pre-discovered Areas 3 | . . 2 . 1 . Known Exits Taken 4 | . 1 1 1 1 . Unknown Exits Taken 1 | 1 . . . . . Scrap Searched 3 | . . 1 . 2 . Spaces Dug . | . . . . . . Terrain Destroyed 84 | . 1 . . 15 68 Melee . | . . . . . . Projectile . | . . . . . . AOE 84 | . 1 . . 15 68 Terrain Rammed . | . . . . . . Walls Destroyed . | . . . . . . Machines Disabled . | . . . . . . Actions | -11 -10 -10 -10 -9 -8 --------- Run | Scr Mat Min Exi Min Mat Total 2771 | . 103 672 505 886 605 Wait 118 | . 4 36 . 40 38 Move 2459 | . 72 635 505 814 433 Hop . | . . . . . . Pick Up 22 | . 6 . . 2 14 Fast Attach 2 | . . . . . 2 Attach 10 | . 1 . . . 9 Detach . | . . . . . . Swap 23 | . 2 . . 7 14 Drop 24 | . 5 . . 6 13 Fire 112 | . 13 . . 17 82 Melee . | . . . . . . Ram . | . . . . . . Kick . | . . . . . . Crush . | . . . . . . Escape Stasis . | . . . . . . Rewire . | . . . . . . Trap 1 | . . 1 . . . Miscellaneous . | . . . . . . Route ------- -11/Scrapyard -10/Materials -10/Mines (discovered 3 exits: *Mat x2 / *Exi) -10/Exiles (discovered 2 exits: *Min x2) -9/Mines (discovered 2 exits: *Mat x2) -8/Materials (discovered 1 exit: *Sto) History --------- Turn | Location | Event 1 | -11/Scrapyard | Discovered new exit (range 0) 1 | -11/Scrapyard | Entered Materials 147 | -10/Materials | Discovered new exit (range 6) 153 | -10/Materials | Identified exit to Mines 155 | -10/Materials | Entered Mines 157 | -10/Mines | Met a Derelict bent on vengeance 197 | -10/Mines | Found a hidden stash of uninstalled traps 228 | -10/Mines | Assisted by bots powering up and referring to "LRC-V3" 318 | -10/Mines | Build established: Mutant 373 | -10/Mines | Learned location of Zion (-7) 564 | -10/Mines | Discovered new exit (range 7) 574 | -10/Mines | Identified exit to Materials 1107 | -10/Mines | Discovered exit to Materials (range 4) 1108 | -10/Mines | Learned location of Storage (-8) 1198 | -10/Mines | Deemed a non-threat by the Exiles lab entrance 1198 | -10/Mines | Discovered new exit (range 5) 1203 | -10/Mines | Identified exit to Exiles 1208 | -10/Mines | Entered Exiles 1208 | -10/Exiles | Found Exiles lab abandoned 1208 | -10/Exiles | Accompanied by 2 allies 1613 | -10/Exiles | Discovered new exit (range 15) 1632 | -10/Exiles | Identified exit to Mines 1997 | -10/Exiles | Discovered exit to Mines (range 14) 2016 | -10/Exiles | Entered Mines 2016 | -9/Mines | Accompanied by 2 allies 2017 | -9/Mines | Assembled infested the area 2022 | -9/Mines | Assisted by a Guerilla fighting off Assembled 2133 | -9/Mines | Received a Rocket Launcher from a helpful Derelict 2355 | -9/Mines | Discovered new exit (range 16) 2379 | -9/Mines | Identified exit to Materials 2412 | -9/Mines | Met a Derelict shopkeep closing up shop 2551 | -9/Mines | Met a Derelict who couldn't figure out how to use a Trap Extractor 2613 | -9/Mines | Discovered exit to Materials (range 6) 2751 | -9/Mines | Joined a pair of Derelicts in attacking an 0b10 outpost 2922 | -9/Mines | Received a Mining Laser from a helpful Derelict 3089 | -9/Mines | Build established: Scavenger-Mutant 3418 | -9/Mines | Entered Materials 3418 | -8/Materials | Evolved 4 slots: Power x1, Propulsion x1, Utility x2 3421 | -8/Materials | Discovered new exit (range 8) 3472 | -8/Materials | Identified exit to Storage 4363 | -8/Materials | Lost 3 parts (1p2n) 4399 | -8/Materials | Build established: Mutant 4432 | -8/Materials | Self-destructed Last Messages --------------- 04390_ G-47 Trooper destroyed. 04393_ R-06 Scavenger collects Particle Gun. 04396_ S-10 Pest destroyed. 04397_ Hvy. EM Pulse Gun destroyed. 04397_ R-06 Scavenger collects Lgt. Ion Engine. 04400_ K-01 Serf collects debris. 04403_ Power failure, Nuclear Core shutdown. 04403_ ALERT: Hostiles spotted, dispatching reinforcements to Terminal M005. 04405_ G-47 Trooper destroyed. 04405_ K-01 Serf collects debris. 04407_ Shock Rifle destroyed. 04408_ Lgt. Treads destroyed. 04408_ K-01 Serf collects debris. 04409_ W-25 Informer sends out distress signal. 04413_ K-01 Serf collects debris. 04413_ Recalibrator destroyed. 04414_ Hvy. EM Pulse Gun destroyed. 04415_ U-05 Engineer lays Concrete. 04416_ K-01 Serf collects debris. Map ----- +----------------------------------------------------+ | #####????????# # [ #???????????????????? | | ?????????????## ############???????????????????? | | ??????????????# %# ! #????????????????????? | | ??????????????# # #????????????????????? | | ??????????????# + #????????????????????? | | ??????????????# # = #????????????????????? | | ??????????????# ###########????????????????????? | | ??????????????# ########???????????????????????? | | ??????????????# #= #???????????????????????? | | ??????????????# %#!!""" #???????????????????????? | | ??????????????#*%%#=%*R" #???????????????????????? | | ??????????????#=%%+[!""" #???????????????????????? | | ??????????????#%%%#[% ###########+????????????? | | ??????????????# **#%= ! / ??? | | ??????????????# =!##################+#???????????? | | ??????????????# #??????????????????????????????? | | ??????????????# #??????????????????????????????? | | ??????????????# #??????????????????????????????? | | ###+########### #??????????????????????????????? | | #??????????????????????????????? | | #??###?##########??????????????? | | ####T### """ #??????????????? | | ########## gg # """"" #??????????????? | | ????????????# g # """"" #??????????????? | | ??????????????# g gg # """"" #??????????????? | | ??????????????######## s @ """ #??????????????? | | ?????????????????????# # #??????????????? | | ?????????????????????# # #??????????????? | | ?????????????????????# # ! #??????????????? | | ?????????????????????# # #??????????????? | | ?????????????????????# ##########??????????????? | | ?????????????????????# #???????????????????????? | | ?????????????????????# #???????????????????????? | | ?????????????????????# #???????????????????????? | | ?????????????????????# #???????????????????????? | | ?????????????????????# #???????????????????????? | | ?????????????????????# ???????????????????????? | | ?????????????????????+ ???????????????????????? | | ?????????????????????# ???????????????????????? | | ?????????????????????#####???????????????????????? | | ?????????????????????????????????????????????????? | | ?????????????????????????????????????????????????? | | ?????????????????????????????????????????????????? | | | | | | | | | | | | | | | +----------------------------------------------------+ Best States ------------- Heat Dissipation 31 Energy Generation 23 Energy Capacity 380 Matter Stores 300 Matter Capacity 300 Sight Range 22 Robot Scan Range 10 Terrain Scan Density 10 Evasion (%) 40 Recoil Reduction 3 Item Schematics ----------------- None Robot Schematics ------------------ None Fabricated ------------ Nothing Alien Tech Used ----------------- None Achievements -------------- Hey, That's Mine! Challenges ------------ None Game ------ Seed NeutralizingPotentialFlakker Manual? 0 Play Time 00:38:54 Cumulative 12.0 hours Start 2021.03.15 @ 20:17:02 End 2021.03.15 @ 20:58:27 Sessions 1 Manual Loads 0 Difficulty Rogue Special Mode None Game No. 26 Rogue 26 Adventurer 0 Explorer 0 Win Type - Total 0 Types 0/0/0/0/0/0/0/0/0 Lore% 19 Gallery% 17 Achievement% 17 Wizard Run 0 Options --------- ASCII 0 Keyboard 0 Movement Mouse Keybinds 0 Fullscreen 2 Font 24/Terminus Map View 76x50 Tactical HUD 1 Map Filters NONE Filters NONE Steam 1 RUN: 062a13c8-98fd-46c0-bb4a-24961ef7fe91